fUST/lending_fUST_20250330
["ID","MTS","AMOUNT","RATE_DAILY","PERIOD"]
[356859770,1743337843380,-500.0,0.00013673,2]
[356859771,1743337843389,-500.0,0.00013673,2]
[356859772,1743337843398,-500.0,0.00013673,2]
[356859773,1743337843408,-439.180335,0.00013699,2]
[356859774,1743337843417,-226.55213522,0.00013699,2]
[356859775,1743337843426,-500.0,0.00013699,2]
[356859776,1743337843436,-500.0,0.00013699,2]
[356859777,1743337843445,-500.0,0.00013699,2]
[356859778,1743337843454,-500.0,0.00013699,2]
[356859779,1743337843464,-500.0,0.00013699,2]
[356859780,1743337843473,-500.0,0.00013699,2]
[356859781,1743337843482,-500.0,0.00013699,2]
[356859782,1743337843492,-500.0,0.00013699,2]
[356859783,1743337843502,-500.0,0.00013699,2]
[356859784,1743337843511,-500.0,0.00013699,2]
[356859785,1743337843521,-500.0,0.00013699,2]
[356859786,1743337843531,-500.0,0.00013699,2]
[356859787,1743337843540,-500.0,0.00013699,2]
[356859788,1743337843550,-500.0,0.00013699,2]
[356859789,1743337843559,-500.0,0.00013699,2]
[356859790,1743337843567,-500.0,0.00013699,2]
[356859791,1743337843576,-500.0,0.00013699,2]
[356859792,1743337843585,-500.0,0.00013699,2]
[356859793,1743337843594,-500.0,0.00013699,2]
[356859794,1743337843603,-500.0,0.00013699,2]
[356859795,1743337843612,-500.0,0.00013699,2]
[356859796,1743337843621,-500.0,0.00013699,2]
[356859797,1743337843630,-500.0,0.00013699,2]
[356859798,1743337843639,-500.0,0.00013699,2]
[356859799,1743337843648,-500.0,0.00013699,2]
[356859800,1743337843656,-500.0,0.00013699,2]
[356859801,1743337843666,-500.0,0.00013699,2]
[356859802,1743337843675,-500.0,0.00013699,2]
[356859803,1743337843684,-500.0,0.00013699,2]
[356859804,1743337843694,-500.0,0.00013699,2]
[356859805,1743337843703,-500.0,0.00013699,2]
[356859806,1743337843713,-500.0,0.00013699,2]
[356859807,1743337843722,-500.0,0.00013699,2]
[356859808,1743337843732,-468.39610212,0.00013699,2]
[356859809,1743337843741,-500.0,0.00013699,2]
[356859810,1743337843751,-500.0,0.00013699,2]
[356859811,1743337843760,-500.0,0.00013699,2]
[356859812,1743337843770,-500.0,0.00013699,2]
[356859813,1743337843778,-500.0,0.00013699,2]
[356859814,1743337843788,-500.0,0.00013699,2]
[356859815,1743337843797,-500.0,0.00013699,2]
[356859816,1743337843807,-420.0,0.00014423,2]
[356859817,1743337843816,-156.02965223,0.000149,2]
[356859818,1743337843826,-587.0,0.00015815,2]
[356859819,1743337843835,-158.84406257,0.00016,2]
[356859820,1743337843844,-2057.0827582,0.00016905,2]
[356859821,1743337843854,-823.0,0.00017341,2]
[356859822,1743337843993,-1000.0,0.00017452,2]
[356859823,1743337844003,-422.89235007,0.00017452,2]
[356859824,1743337844012,-1000.0,0.00017452,2]
[356859825,1743337844022,-500.0,0.0001824,2]
[356859826,1743337844031,-500.0,0.0001824,2]
[356859827,1743337844040,-500.0,0.0001824,2]
[356859828,1743337844050,-504.47337242,0.0001824,2]
[356859829,1743337844059,-500.0,0.0001824,2]
[356859830,1743337844069,-500.0,0.0001824,2]
[356859831,1743337844078,-500.0,0.0001824,2]
[356859832,1743337844087,-500.0,0.0001824,2]
[356859833,1743337844097,-500.0,0.0001824,2]
[356859834,1743337844106,-500.0,0.0001824,2]
[356859835,1743337844117,-500.0,0.0001824,2]
[356859836,1743337844128,-500.0,0.0001824,2]
[356859837,1743337844137,-500.0,0.0001824,2]
[356859838,1743337844146,-500.0,0.0001824,2]
[356859839,1743337844155,-500.0,0.0001824,2]
[356859840,1743337844165,-500.0,0.0001824,2]
[356859841,1743337844177,-500.0,0.0001824,2]
[356859842,1743337844188,-500.0,0.0001824,2]
[356859843,1743337844201,-500.0,0.0001824,2]
[356859844,1743337844213,-500.0,0.0001824,2]
[356859845,1743337844224,-500.0,0.0001824,2]
[356859846,1743337844236,-500.0,0.0001824,2]
[356859847,1743337844246,-500.0,0.0001824,2]
[356859848,1743337844255,-500.0,0.0001824,2]
[356859849,1743337844263,-500.0,0.0001824,2]
[356859850,1743337844272,-855.79469711,0.0001824,2]
[356859851,1743337844281,-537.33912559,0.0001824,2]
[356859852,1743337844291,-500.0,0.0001824,2]
[356859853,1743337844300,-500.0,0.0001824,2]
[356859854,1743337844308,-500.0,0.0001824,2]
[356859855,1743337844318,-500.0,0.0001824,2]
[356859856,1743337844327,-500.01704279,0.0001824,2]
[356859857,1743337844336,-564.00325841,0.0001824,2]
[356859858,1743337844346,-509.4457655,0.0001824,2]
[356859859,1743337844355,-159.52,0.000186,2]
[356859860,1743337844364,-1000.0,0.00018652,2]
[356859861,1743337844373,-1000.0,0.00018652,2]
[356859862,1743337844382,-1014.26767586,0.00018652,2]
[356859863,1743337844392,-1000.0,0.00018652,2]
[356859864,1743337844401,-1000.0,0.00018652,2]
[356859865,1743337844411,-1000.0,0.00018652,2]
[356859866,1743337844420,-1000.0,0.00018652,2]
[356859867,1743337844429,-1000.0,0.00018652,2]
[356859868,1743337844438,-1000.0,0.00018652,2]
[356859869,1743337844447,-1000.0,0.00018652,2]
[356859870,1743337844456,-500.0,0.00018652,2]
[356859871,1743337844466,-500.0,0.00018652,2]
[356859872,1743337844475,-1000.0,0.00018652,2]
[356859873,1743337844484,-1000.0,0.00018652,2]
[356859874,1743337844493,-2260.0,0.00018807,2]
[356859875,1743337844503,-1915.0,0.00018807,2]
[356859876,1743337844513,-401.0,0.00018807,2]
[356859877,1743337844523,-1152.0,0.00019014,2]
[356859878,1743337844532,-500.0,0.00019152,2]
[356859879,1743337844541,-1000.0,0.00019152,2]
[356859880,1743337844550,-1000.0,0.00019152,2]
[356859881,1743337844560,-383.06858051,0.00019152,2]
[356859882,1743337844569,-1000.0,0.00019152,2]
[356859883,1743337844578,-1000.0,0.00019152,2]
[356859884,1743337844588,-1000.0,0.00019152,2]
[356859885,1743337844597,-325.12370104,0.00019173,2]
[356859886,1743337844606,-501.15942954,0.00019173,2]
[356859887,1743337844616,-501.00866005,0.00019173,2]
[356859888,1743337844625,-501.06258094,0.00019173,2]
[356859889,1743337844635,-449.82008217,0.00019173,2]
[356859890,1743337844644,-500.0,0.00019173,2]
[356859891,1743337844653,-500.0,0.00019173,2]
[356859892,1743337844663,-500.0,0.00019173,2]
[356859893,1743337844672,-506.25921783,0.00019173,2]
[356859894,1743337844681,-502.05384993,0.00019173,2]
[356859895,1743337844691,-514.43257797,0.00019173,2]
[356859896,1743337844700,-500.0,0.00019173,2]
[356859897,1743337844709,-500.0,0.00019173,2]
[356859898,1743337844718,-500.0,0.00019173,2]
[356859899,1743337844727,-500.0,0.00019173,2]
[356859900,1743337844737,-500.0,0.00019173,2]
[356859901,1743337844746,-500.0,0.00019173,2]
[356859902,1743337844757,-500.0,0.00019173,2]
[356859903,1743337844766,-500.0,0.00019173,2]
[356859904,1743337844776,-506.79536474,0.00019173,2]
[356859905,1743337844785,-500.0,0.00019173,2]
[356859906,1743337844795,-500.0,0.00019173,2]
[356859907,1743337844804,-500.0,0.00019173,2]
[356859908,1743337844814,-500.0,0.00019173,2]
[356859909,1743337844823,-500.0,0.00019173,2]
[356859910,1743337844833,-500.0,0.00019173,2]
[356859911,1743337844842,-500.0,0.00019173,2]
[356859912,1743337844852,-500.0,0.00019178,2]
[356859913,1743337844861,-500.0,0.00019178,2]
[356859914,1743337844870,-500.0,0.00019178,2]
[356859915,1743337844880,-603.37,0.00019178,2]
[356859916,1743337844889,-398.66833842,0.00019178,2]
[356859917,1743337844899,-500.0,0.00019178,2]
[356859918,1743337844908,-367.29752353,0.00019178,2]
[356859919,1743337844918,-500.0,0.00019178,2]
[356859920,1743337844928,-500.0,0.00019178,2]
[356859921,1743337844937,-500.0,0.00019178,2]
[356859922,1743337844946,-546.39222198,0.00019178,2]
[356859924,1743337844955,-500.0,0.00019178,2]
[356859925,1743337844965,-500.0,0.00019178,2]
[356859926,1743337844974,-882.83,0.00019178,2]
[356859928,1743337844984,-500.0,0.00019178,2]
[356859929,1743337844994,-500.0,0.00019178,2]
[356859930,1743337845003,-500.0,0.00019178,2]
[356859931,1743337845013,-500.0,0.00019178,2]
[356859932,1743337845023,-500.0,0.00019178,2]
[356859933,1743337845032,-500.0,0.00019178,2]
[356859934,1743337845041,-500.0,0.00019178,2]
[356859935,1743337845050,-500.0,0.00019178,2]
[356859936,1743337845059,-500.0,0.00019178,2]
[356859937,1743337845069,-500.0,0.00019178,2]
[356859938,1743337845079,-500.0,0.00019178,2]
[356859939,1743337845089,-500.0,0.00019178,2]
[356859940,1743337845098,-500.0,0.00019178,2]
[356859941,1743337845107,-500.0,0.00019178,2]
[356859942,1743337845120,-500.0,0.00019178,2]
[356859943,1743337845129,-500.0,0.00019178,2]
[356859944,1743337845138,-500.0,0.00019178,2]
[356859945,1743337845147,-500.0,0.00019178,2]
[356859946,1743337845156,-359.28225691,0.00019178,2]
[356859947,1743337845166,-500.0,0.00019178,2]
[356859948,1743337845175,-500.0,0.00019178,2]
[356859949,1743337845184,-500.0,0.00019178,2]
[356859950,1743337845194,-500.0,0.00019178,2]
[356859951,1743337845203,-500.0,0.00019178,2]
[356859952,1743337845212,-500.0,0.00019178,2]
[356859953,1743337845221,-500.0,0.00019178,2]
[356859954,1743337845231,-500.0,0.00019178,2]
[356859955,1743337845240,-263.18297542,0.00019178,2]
[356859956,1743337845249,-500.0,0.00019178,2]
[356859957,1743337845259,-500.0,0.00019178,2]
[356859958,1743337845268,-500.0,0.00019178,2]
[356859959,1743337845277,-500.0,0.00019178,2]
[356859960,1743337845287,-500.0,0.00019178,2]
[356859961,1743337845295,-500.0,0.00019178,2]
[356859962,1743337845304,-3775.14,0.00019178,2]
[356859963,1743337845313,-1000.0,0.00019178,7]
[356859964,1743337845323,-500.0,0.00019178,2]
[356859965,1743337845332,-5761.44,0.00019178,2]
[356859966,1743337845340,-5761.44,0.00019178,2]
[356859967,1743337845349,-5761.44,0.00019178,2]
[356859968,1743337845358,-5761.44,0.00019178,2]
[356859969,1743337845367,-5761.44,0.00019178,2]
[356859970,1743337845376,-5761.44,0.00019178,2]
[356859971,1743337845385,-5761.44,0.00019178,2]
[356859972,1743337845395,-5761.44,0.00019178,2]
[356859973,1743337845404,-5761.44,0.00019178,2]
[356859974,1743337845417,-5761.44,0.00019178,2]
[356859976,1743337845427,-5761.44,0.00019178,2]
[356859977,1743337845436,-5761.44,0.00019178,2]
[356859978,1743337845446,-5761.44,0.00019178,2]
[356859979,1743337845455,-5761.44,0.00019178,2]
[356859980,1743337845464,-5761.44,0.00019178,2]
[356859981,1743337845473,-5761.44,0.00019178,2]
[356859982,1743337845482,-5761.44,0.00019178,2]
[356859985,1743337845492,-5761.44,0.00019178,2]
[356859987,1743337845501,-5761.44,0.00019178,2]
[356859989,1743337845510,-5761.44,0.00019178,2]
[356859991,1743337845520,-5761.44,0.00019178,2]
[356859992,1743337845529,-5761.44,0.00019178,2]
[356859993,1743337845538,-5761.44,0.00019178,2]
[356859994,1743337845548,-5761.54372786,0.00019178,2]
[356859995,1743337845557,-500.0,0.00019178,2]
[356859996,1743337845566,-500.0,0.00019452,2]
[356859997,1743337845575,-449.98306672,0.00019452,2]
[356859998,1743337845590,-500.0,0.00019452,2]
[356859999,1743337845609,-603.37,0.00019452,2]
[356860000,1743337845618,-500.0,0.00019452,2]
[356860001,1743337845627,-500.0,0.00019452,2]
[356860002,1743337845636,-500.0,0.00019452,2]
[356860003,1743337845646,-882.83,0.00019452,2]
[356860004,1743337845655,-500.0,0.00019452,2]
[356860005,1743337845663,-500.0,0.00019452,2]
[356860006,1743337845672,-500.0,0.00019452,2]
[356860007,1743337845681,-500.0,0.00019452,2]
[356860008,1743337845690,-500.0,0.00019452,2]
[356860009,1743337845699,-500.0,0.00019452,2]
[356860010,1743337845708,-500.0,0.00019452,2]
[356860011,1743337845718,-500.0,0.00019452,2]
[356860012,1743337845727,-3775.14,0.00019452,2]
[356860013,1743337845736,-1000.0,0.00019452,7]
[356860014,1743337845745,-500.0,0.00019452,2]
[356860015,1743337845755,-500.0,0.00019452,2]
[356860016,1743337845765,-402.81309169,0.00019726,2]
[356860018,1743337845774,-500.0,0.00019726,2]
[356860020,1743337845784,-603.37,0.00019726,2]
[356860021,1743337845794,-500.0,0.00019726,2]
[356860022,1743337845804,-500.0,0.00019726,2]
[356860023,1743337845813,-500.0,0.00019726,2]
[356860024,1743337845823,-882.83,0.00019726,2]
[356860026,1743337845832,-500.0,0.00019726,2]
[356860027,1743337845842,-500.0,0.00019726,2]
[356860028,1743337845851,-500.0,0.00019726,2]
[356860029,1743337845861,-500.0,0.00019726,2]
[356860030,1743337845870,-500.0,0.00019726,2]
[356860031,1743337845879,-500.0,0.00019726,2]
[356860032,1743337845888,-500.0,0.00019726,2]
[356860033,1743337845897,-500.0,0.00019726,2]
[356860034,1743337845906,-3775.14,0.00019726,2]
[356860035,1743337845915,-1000.0,0.00019726,7]
[356860036,1743337845924,-500.0,0.00019726,2]
[356860037,1743337845933,-500.0,0.00019726,2]
[356860038,1743337845942,-500.0,0.00019867,2]
[356860039,1743337845951,-500.0,0.00019867,2]
[356860040,1743337845961,-500.0,0.00019867,2]
[356860041,1743337845970,-500.0,0.0002,2]
[356860043,1743337845979,-603.37,0.0002,2]
[356860044,1743337845988,-500.0,0.0002,2]
[356860046,1743337845997,-500.0,0.0002,2]
[356860047,1743337846006,-500.0,0.0002,2]
[356860048,1743337846016,-882.83,0.0002,2]
[356860050,1743337846025,-500.0,0.0002,2]
[356860052,1743337846034,-500.0,0.0002,2]
[356860053,1743337846043,-500.0,0.0002,2]
[356860054,1743337846053,-500.0,0.0002,2]
[356860055,1743337846062,-500.0,0.0002,2]
[356860056,1743337846072,-500.0,0.0002,2]
[356860057,1743337846082,-500.0,0.0002,2]
[356860058,1743337846091,-500.0,0.0002,2]
[356860059,1743337846100,-3775.14,0.0002,2]
[356860060,1743337846109,-1000.0,0.0002,7]
[356860061,1743337846121,-500.0,0.0002,2]
[356860062,1743337846130,-369.90154394,0.0002,2]
[356860063,1743337846139,-500.0,0.00020173,2]
[356860064,1743337846148,-4085.30186273,0.00020173,2]
[356860065,1743337846158,-418.75886239,0.00020249,2]
[356860066,1743337846168,-500.0,0.00020273,2]
[356860067,1743337846177,-603.37,0.00020273,2]
[356860068,1743337846186,-500.0,0.00020273,2]
[356860069,1743337846197,-500.0,0.00020273,2]
[356860070,1743337846208,-500.0,0.00020273,2]
[356860071,1743337846218,-882.83,0.00020273,2]
[356860072,1743337846227,-500.0,0.00020273,2]
[356860073,1743337846236,-500.0,0.00020273,2]
[356860074,1743337846245,-500.0,0.00020273,2]
[356860075,1743337846257,-500.0,0.00020273,2]
[356860076,1743337846267,-500.0,0.00020273,2]
[356860077,1743337846276,-500.0,0.00020273,2]
[356860078,1743337846285,-500.0,0.00020273,2]
[356860079,1743337846295,-500.0,0.00020273,2]
[356860080,1743337846303,-3775.14,0.00020273,2]
[356860081,1743337846312,-1000.0,0.00020273,7]
[356860082,1743337846321,-500.0,0.00020273,2]
[356860083,1743337846332,-367.78717912,0.00020547,2]
[356860084,1743337846342,-603.37,0.00020547,2]
[356860085,1743337846352,-500.0,0.00020547,2]
[356860086,1743337846362,-501.51986403,0.00020547,2]
[356860087,1743337846371,-500.0,0.00020547,2]
[356860088,1743337846380,-882.83,0.00020547,2]
[356860089,1743337846390,-500.0,0.00020547,2]
[356860090,1743337846646,-500.0,0.00020547,2]
[356860091,1743337846657,-500.0,0.00020547,2]
[356860092,1743337846667,-500.0,0.00020547,2]
[356860093,1743337846678,-500.0,0.00020547,2]
[356860094,1743337846688,-500.0,0.00020547,2]
[356860095,1743337846697,-500.0,0.00020547,2]
[356860096,1743337846707,-3775.14,0.00020547,2]
[356860097,1743337846717,-1091.39705833,0.00020547,7]
[356860098,1743337846727,-500.0,0.00020547,2]
[356860099,1743337846736,-439.180335,0.00020548,2]
[356860100,1743337846746,-2057.0827582,0.00020738,2]
[356860101,1743337846757,-603.37,0.00020821,2]
[356860102,1743337846767,-500.0,0.00020821,2]
[356860103,1743337846778,-500.0,0.00020821,2]
[356860104,1743337846787,-882.83,0.00020821,2]
[356860105,1743337846797,-500.0,0.00020821,2]
[356860106,1743337846807,-500.0,0.00020821,2]
[356860107,1743337846816,-500.0,0.00020821,2]
[356860108,1743337846826,-500.0,0.00020821,2]
[356860109,1743337846836,-500.0,0.00020821,2]
[356860110,1743337846846,-500.0,0.00020821,2]
[356860111,1743337846856,-584.43324826,0.00020821,2]
[356860112,1743337846866,-3775.14,0.00020821,2]
[356860113,1743337846876,-500.0,0.00020821,2]
[356860114,1743337846885,-1202.0,0.00020849,2]
[356860115,1743337846895,-168.3838509,0.00020993,2]
[356860116,1743337846905,-603.37,0.00021095,2]
[356860117,1743337846915,-500.0,0.00021095,2]
[356860118,1743337846924,-500.0,0.00021095,2]
[356860119,1743337846934,-882.83,0.00021095,2]
[356860120,1743337846944,-500.0,0.00021095,2]
[356860121,1743337846954,-500.0,0.00021095,2]
[356860122,1743337846963,-500.0,0.00021095,2]
[356860123,1743337846973,-500.0,0.00021095,2]
[356860124,1743337846983,-500.0,0.00021095,2]
[356860125,1743337846993,-500.0,0.00021095,2]
[356860126,1743337847002,-3775.14,0.00021095,2]
[356860127,1743337847013,-500.0,0.00021095,2]
[356860128,1743337847022,-2000.0,0.00021247,4]
[356860129,1743337847031,-603.37,0.00021369,2]
[356860130,1743337847041,-500.0,0.00021369,2]
[356860131,1743337847051,-500.0,0.00021369,2]
[356860132,1743337847060,-882.83,0.00021369,2]
[356860133,1743337847070,-500.0,0.00021369,2]
[356860134,1743337847079,-167.26495432,0.00021369,2]
[356860135,1743337847089,-500.0,0.00021369,2]
[356860136,1743337847098,-500.0,0.00021369,2]
[356860137,1743337847107,-500.0,0.00021369,2]
[356860138,1743337847121,-500.0,0.00021369,2]
[356860139,1743337847130,-3775.14,0.00021369,2]
[356860140,1743337847140,-500.0,0.00021369,2]
[356860141,1743337847149,-600.0,0.00021436,2]
[356860142,1743337847159,-622.2,0.00021491,2]
[356860143,1743337847168,-645.2214,0.00021546,2]
[356860144,1743337847178,-669.0945918,0.00021601,2]
[356860145,1743337847187,-603.37,0.00021643,2]
[356860146,1743337847198,-500.0,0.00021643,2]
[356860147,1743337847208,-500.0,0.00021643,2]
[356860148,1743337847217,-882.83,0.00021643,2]
[356860149,1743337847227,-500.0,0.00021643,2]
[356860150,1743337847237,-500.0,0.00021643,2]
[356860151,1743337847247,-500.0,0.00021643,2]
[356860152,1743337847272,-500.0,0.00021643,2]
[356860153,1743337847286,-500.0,0.00021643,2]
[356860154,1743337847298,-3775.14,0.00021643,2]
[356860155,1743337847308,-500.0,0.00021643,2]
[356860156,1743337847320,-719.18813929,0.00021656,2]
[356860157,1743337847330,-2239.4,0.00021807,2]
[356860158,1743337847342,-1915.0,0.00021807,2]
[356860159,1743337847353,-401.0,0.00021807,2]
[356860160,1743337847363,-603.37,0.00021917,2]
[356860161,1743337847374,-500.0,0.00021917,2]
[356860162,1743337847384,-500.0,0.00021917,2]
[356860163,1743337847395,-882.83,0.00021917,2]
[356860164,1743337847405,-500.0,0.00021917,2]
[356860165,1743337847414,-500.0,0.00021917,2]
[356860166,1743337847424,-500.0,0.00021917,2]
[356860167,1743337847433,-500.0,0.00021917,2]
[356860168,1743337847444,-500.0,0.00021917,2]
[356860169,1743337847454,-3775.14,0.00021917,2]
[356860170,1743337847463,-500.0,0.00021917,2]
[356860171,1743337847473,-603.37,0.00022191,2]
[356860172,1743337847483,-410.51422563,0.00022191,2]
[356860173,1743337847492,-500.0,0.00022191,2]
[356860174,1743337847502,-882.83,0.00022191,2]
[356860175,1743337847515,-500.0,0.00022191,2]
[356860176,1743337847525,-500.0,0.00022191,2]
[356860177,1743337847534,-500.0,0.00022191,2]
[356860178,1743337847544,-500.0,0.00022191,2]
[356860179,1743337847554,-500.0,0.00022191,2]
[356860180,1743337847564,-3775.14,0.00022191,2]
[356860181,1743337847573,-500.0,0.00022191,2]
[356860182,1743337847583,-11066.03574999,0.000222,3]
[356860183,1743337847592,-603.37,0.00022465,2]
[356860184,1743337847602,-500.0,0.00022465,2]
[356860185,1743337847612,-882.83,0.00022465,2]
[356860186,1743337847622,-500.0,0.00022465,2]
[356860187,1743337847632,-500.0,0.00022465,2]
[356860188,1743337847642,-500.0,0.00022465,2]
[356860189,1743337847652,-500.0,0.00022465,2]
[356860190,1743337847662,-500.0,0.00022465,2]
[356860191,1743337847671,-3775.14,0.00022465,2]
[356860192,1743337847681,-500.0,0.00022465,2]
[356860193,1743337847691,-151.0,0.000225,10]
[356860194,1743337847700,-603.37,0.00022739,2]
[356860195,1743337847710,-500.0,0.00022739,2]
[356860196,1743337847719,-882.83,0.00022739,2]
[356860197,1743337847729,-500.0,0.00022739,2]
[356860198,1743337847739,-500.0,0.00022739,2]
[356860199,1743337847748,-500.0,0.00022739,2]
[356860200,1743337847759,-500.0,0.00022739,2]
[356860201,1743337847769,-500.0,0.00022739,2]
[356860202,1743337847778,-3775.14,0.00022739,2]
[356860203,1743337847787,-500.0,0.00022739,2]
[356860204,1743337847797,-175.83894247,0.00022913,2]
[356860205,1743337847807,-603.37,0.00023013,2]
[356860206,1743337847817,-500.0,0.00023013,2]
[356860207,1743337847827,-882.83,0.00023013,2]
[356860208,1743337847836,-385.08572755,0.00023013,2]
[356860209,1743337847845,-500.0,0.00023013,2]
[356860210,1743337847855,-500.0,0.00023013,2]
[356860211,1743337847864,-500.0,0.00023013,2]
[356860212,1743337847874,-500.0,0.00023013,2]
[356860213,1743337847883,-3775.14,0.00023013,2]
[356860214,1743337847893,-500.0,0.00023013,2]
[356860215,1743337847902,-835.47628717,0.00023287,7]
[356860216,1743337847912,-603.37,0.00023287,2]
[356860217,1743337847922,-500.0,0.00023287,2]
[356860218,1743337847931,-882.83,0.00023287,2]
[356860219,1743337847941,-500.0,0.00023287,2]
[356860220,1743337847951,-500.0,0.00023287,2]
[356860221,1743337847961,-500.0,0.00023287,2]
[356860222,1743337847971,-500.0,0.00023287,2]
[356860223,1743337847980,-3775.14,0.00023287,2]
[356860224,1743337847990,-500.0,0.00023287,2]
[356860225,1743337848000,-603.37,0.00023561,2]
[356860226,1743337848010,-500.0,0.00023561,2]
[356860227,1743337848020,-882.83,0.00023561,2]
[356860228,1743337848029,-500.0,0.00023561,2]
[356860229,1743337848038,-500.0,0.00023561,2]
[356860230,1743337848049,-500.0,0.00023561,2]
[356860231,1743337848058,-500.0,0.00023561,2]
[356860232,1743337848068,-3775.14,0.00023561,2]
[356860233,1743337848078,-500.0,0.00023561,2]
[356860234,1743337848087,-3000.0,0.0002358,2]
[356860235,1743337848097,-151.0,0.000236,8]
[356860236,1743337848107,-603.37,0.00023835,2]
[356860237,1743337848116,-412.20674668,0.00023835,2]
[356860238,1743337848127,-882.83,0.00023835,2]
[356860239,1743337848139,-500.0,0.00023835,2]
[356860240,1743337848148,-500.0,0.00023835,2]
[356860241,1743337848158,-500.0,0.00023835,2]
[356860242,1743337848168,-500.0,0.00023835,2]
[356860243,1743337848178,-3775.14,0.00023835,2]
[356860244,1743337848188,-500.0,0.00023835,2]
[356860245,1743337848197,-603.37,0.00024109,2]
[356860246,1743337848208,-882.83,0.00024109,2]
[356860247,1743337848218,-500.0,0.00024109,2]
[356860248,1743337848227,-500.0,0.00024109,2]
[356860249,1743337848237,-602.55,0.00024109,2]
[356860250,1743337848246,-467.49245237,0.00024109,2]
[356860251,1743337848256,-3775.14,0.00024109,2]
[356860252,1743337848265,-500.0,0.00024109,2]
[356860253,1743337848275,-603.37,0.00024383,2]
[356860254,1743337848284,-882.83,0.00024383,2]
[356860255,1743337848294,-500.0,0.00024383,2]
[356860256,1743337848304,-500.0,0.00024383,2]
[356860257,1743337848314,-3775.14,0.00024383,2]
[356860258,1743337848323,-500.0,0.00024383,2]
[356860259,1743337848332,-2057.0827582,0.0002457,2]
[356860260,1743337848341,-501.88448302,0.00024652,2]
[356860261,1743337848352,-585.17803371,0.00024652,2]
[356860262,1743337848369,-1025.81762389,0.00024652,2]
[356860263,1743337848379,-578.83304234,0.00024652,2]
[356860264,1743337848388,-500.0,0.00024652,2]
[356860265,1743337848397,-500.0,0.00024652,2]
[356860266,1743337848407,-1000.0,0.00024652,2]
[356860267,1743337848417,-500.0,0.00024652,2]
[356860268,1743337848427,-500.0,0.00024652,2]
[356860269,1743337848436,-501.22982129,0.00024652,2]
[356860270,1743337848446,-1000.0,0.00024652,2]
[356860271,1743337848457,-500.0,0.00024652,2]
[356860272,1743337848467,-500.0,0.00024652,2]
[356860273,1743337848477,-500.0,0.00024652,2]
[356860274,1743337848486,-500.0,0.00024652,2]
[356860275,1743337848495,-500.0,0.00024652,2]
[356860276,1743337848506,-1000.62791182,0.00024652,2]
[356860277,1743337848515,-500.0,0.00024652,2]
[356860278,1743337848525,-603.37,0.00024657,2]
[356860279,1743337848534,-882.83,0.00024657,2]
[356860280,1743337848544,-500.0,0.00024657,2]
[356860281,1743337848553,-500.0,0.00024657,2]
[356860282,1743337848563,-3775.14,0.00024657,2]
[356860283,1743337848572,-562.05032516,0.00024657,2]
[356860284,1743337848582,-835.47628717,0.0002466,2]